{"text_format":"3","workbook":"xlsx","n_sheets":2,"sheets":["แบบฟอร์มการเสนอราคา","รายละเอียดค่าใช้จ่าย"],"not_rendered":{"charts":1,"images":2,"defined_names":4},"read":"whole","date_system":"1900"}

{"sheet":"แบบฟอร์มการเสนอราคา","index":0,"n_rows":48,"n_cols":7,"rows_kept":48,"merged":[[15,1,25,5],[29,1,31,5],[35,1,37,5],[43,1,45,5]]}
[]
[null,"แบบฟอร์มเสนอราคาค่าก่อสร้าง",{"$nulls":4}," "]
[]
[]
[null,"ข้อมูลผู้ว่าจ้าง",null,null,"ข้อมูลผู้รับเหมา"]
[null,"ชื่อ","ณัฐธร ชัยนาม",null,"บริษัท","Fabrikam, Inc."]
[null,"ที่อยู่","123 ถนนเพชรเกษม",null,"ชื่อ","สมบัติ ลี้อิสสรพงษ์"]
[null,"จังหวัด รหัสไปรษณีย์","กรุงเทพ 12345",null,"ที่อยู่","321 ถนนเพชรบุรี"]
[null,"โทรศัพท์",8885550111,null,"จังหวัด รหัสไปรษณีย์","กรุงเทพ 12345"]
[null,"อีเมล","nattornl@proseware.com",null,"โทรศัพท์",8885550123]
[{"$nulls":4},"อีเมล","sombat@fabrikam.com"]
[null,"ชื่อโครงการ","บันไดขึ้นห้องทำงาน",null,"วันเสร็จสิ้นโครงการ","2013-07-14"]
[]
[null,"รายละเอียดของงาน"]
[]
[null,"รายละเอียดงานของโครงการจะอยู่ที่นี่ ให้ใส่ข้อกำหนดทั้งหมดที่คุณต้องการลงไป นี่คือแบบจำลองโครงการการสร้างชุดบันไดขนาดใหญ่ เราจะใช้เฉพาะไม้ขนาด 2x4 และ 2x8 และฉากยึดเพื่อสร้างโครง ขั้นบันไดจะตัดจากไม้ขนาด 2x4 ใช้สกรูขนาดไม่ต่ำกว่า 2\" และตะปูไม่ต่ำกว่า 3\" ขั้นบันไดแต่ละขั้นได้รับการออกแบบให้รับน้ำหนักได้ไม่ต่ำกว่า 500 ปอนด์ ขั้นบันไดอยู่ในแนวระนาบเดียวกับพื้่นบ้าน มีพื้นไม้รองบันไดยึดติดกับบ้าน ผู้รับเหมาเป็นผู้ทำความสะอาดเมื่องานเสร็จ"]
{"$rows_empty":11}
[null,"สิ่งที่ไม่รวมในงาน"]
[]
[null,"ไม่ติดราวบันได ผู้ว่าจ้างเป็นผู้ปรับฐานพื้น และทาสีบันได"]
[]
[]
[]
[null,"ข้อเสนอของบริษัท"]
[]
[null,"เรา บริษัท Fabrikam, Inc. ขอเสนอราคาในการทำงานตามรายละเอียดที่กำหนดข้างต้น ให้เสร็จสมบูรณ์ภายในวันที่ 14 ก.ค. 2554 เป็นจำนวนเงิน ฿476.43"]
[]
[]
[]
[null,"โดย (ตัวแทนบริษัท)",{"$nulls":3},"วันที่"]
[]
[null,"การตอบรับของผู้ว่าจ้าง"]
[]
[null,"ข้าพเจ้า ณัฐธร ชัยนาม ตกลงว่าจ้างให้ทำงานตามรายละเอียดที่กำหนดข้างต้น ให้เสร็จสมบูรณ์ภายในวันที่ 14 ก.ค. 2554 เป็นจำนวนเงิน ฿476.43"]
[]
[]
[]
[null,"โดย (เจ้าของบ้าน หรือผู้รับมอบอำนาจ)",{"$nulls":3},"วันที่"]

{"sheet":"รายละเอียดค่าใช้จ่าย","index":1,"n_rows":47,"n_cols":6,"rows_kept":47,"merged":[[42,3,42,4],[43,3,43,4],[44,3,44,4],[45,3,45,4],[46,3,46,4],[47,3,47,4],[48,3,48,4],[49,3,49,4]]}
[]
[null,"สรุปราคาที่เสนอ",{"$nulls":3}," "]
[]
[]
[null,"รายการวัสดุและราคา"]
[]
[null,"ปริมาณ","คำอธิบาย","ราคา","ผลรวม"," "]
[null,5,"ไม้ขนาด 2x8x10",{"v":6.75,"d":"฿6.75"},{"$f":"สิ่งที่เสนอราคา[ราคา]*สิ่งที่เสนอราคา[ปริมาณ]","v":{"v":33.75,"d":"฿33.75"}},{"$f":"_xlfn.RANK.EQ(สิ่งที่เสนอราคา[[#This Row],[ผลรวม]],สิ่งที่เสนอราคา[ผลรวม])","v":4}]
[null,20,"ไม้ขนาด 2x4x10",{"v":4.97,"d":"฿4.97"},{"$f":"สิ่งที่เสนอราคา[ราคา]*สิ่งที่เสนอราคา[ปริมาณ]","v":{"v":99.39999999999999,"d":"฿99.40"}},{"$f":"_xlfn.RANK.EQ(สิ่งที่เสนอราคา[[#This Row],[ผลรวม]],สิ่งที่เสนอราคา[ผลรวม])","v":2}]
[null,30,"ฉากยึด",{"v":2.49,"d":"฿2.49"},{"$f":"สิ่งที่เสนอราคา[ราคา]*สิ่งที่เสนอราคา[ปริมาณ]","v":{"v":74.7,"d":"฿74.70"}},{"$f":"_xlfn.RANK.EQ(สิ่งที่เสนอราคา[[#This Row],[ผลรวม]],สิ่งที่เสนอราคา[ผลรวม])","v":3}]
[null,2,"สกรู 2 นิ้ว (กล่อง)",{"v":6.67,"d":"฿6.67"},{"$f":"สิ่งที่เสนอราคา[ราคา]*สิ่งที่เสนอราคา[ปริมาณ]","v":{"v":13.34,"d":"฿13.34"}},{"$f":"_xlfn.RANK.EQ(สิ่งที่เสนอราคา[[#This Row],[ผลรวม]],สิ่งที่เสนอราคา[ผลรวม])","v":6}]
[null,2,"ตะปู 3 นิ้ว (กล่อง)",{"v":3.25,"d":"฿3.25"},{"$f":"สิ่งที่เสนอราคา[ราคา]*สิ่งที่เสนอราคา[ปริมาณ]","v":{"v":6.5,"d":"฿6.50"}},{"$f":"_xlfn.RANK.EQ(สิ่งที่เสนอราคา[[#This Row],[ผลรวม]],สิ่งที่เสนอราคา[ผลรวม])","v":7}]
[null,2,"ถุงมือหนัง (คู่)",{"v":7.75,"d":"฿7.75"},{"$f":"สิ่งที่เสนอราคา[ราคา]*สิ่งที่เสนอราคา[ปริมาณ]","v":{"v":15.5,"d":"฿15.50"}},{"$f":"_xlfn.RANK.EQ(สิ่งที่เสนอราคา[[#This Row],[ผลรวม]],สิ่งที่เสนอราคา[ผลรวม])","v":5}]
[null,2,"ค่าแรง",{"v":100,"d":"฿100.00"},{"$f":"สิ่งที่เสนอราคา[ราคา]*สิ่งที่เสนอราคา[ปริมาณ]","v":{"v":200,"d":"฿200.00"}},{"$f":"_xlfn.RANK.EQ(สิ่งที่เสนอราคา[[#This Row],[ผลรวม]],สิ่งที่เสนอราคา[ผลรวม])","v":1}]
[{"$nulls":4},{"$f":"สิ่งที่เสนอราคา[ราคา]*สิ่งที่เสนอราคา[ปริมาณ]","v":0},{"$f":"_xlfn.RANK.EQ(สิ่งที่เสนอราคา[[#This Row],[ผลรวม]],สิ่งที่เสนอราคา[ผลรวม])","v":8}]
[{"$nulls":4},{"$f":"สิ่งที่เสนอราคา[ราคา]*สิ่งที่เสนอราคา[ปริมาณ]","v":0},{"$f":"_xlfn.RANK.EQ(สิ่งที่เสนอราคา[[#This Row],[ผลรวม]],สิ่งที่เสนอราคา[ผลรวม])","v":8}]
[{"$nulls":4},{"$f":"สิ่งที่เสนอราคา[ราคา]*สิ่งที่เสนอราคา[ปริมาณ]","v":0},{"$f":"_xlfn.RANK.EQ(สิ่งที่เสนอราคา[[#This Row],[ผลรวม]],สิ่งที่เสนอราคา[ผลรวม])","v":8}]
[{"$nulls":4},{"$f":"สิ่งที่เสนอราคา[ราคา]*สิ่งที่เสนอราคา[ปริมาณ]","v":0},{"$f":"_xlfn.RANK.EQ(สิ่งที่เสนอราคา[[#This Row],[ผลรวม]],สิ่งที่เสนอราคา[ผลรวม])","v":8}]
[{"$nulls":4},{"$f":"สิ่งที่เสนอราคา[ราคา]*สิ่งที่เสนอราคา[ปริมาณ]","v":0},{"$f":"_xlfn.RANK.EQ(สิ่งที่เสนอราคา[[#This Row],[ผลรวม]],สิ่งที่เสนอราคา[ผลรวม])","v":8}]
[{"$nulls":4},{"$f":"สิ่งที่เสนอราคา[ราคา]*สิ่งที่เสนอราคา[ปริมาณ]","v":0},{"$f":"_xlfn.RANK.EQ(สิ่งที่เสนอราคา[[#This Row],[ผลรวม]],สิ่งที่เสนอราคา[ผลรวม])","v":8}]
[{"$nulls":4},{"$f":"สิ่งที่เสนอราคา[ราคา]*สิ่งที่เสนอราคา[ปริมาณ]","v":0},{"$f":"_xlfn.RANK.EQ(สิ่งที่เสนอราคา[[#This Row],[ผลรวม]],สิ่งที่เสนอราคา[ผลรวม])","v":8}]
[{"$nulls":4},{"$f":"สิ่งที่เสนอราคา[ราคา]*สิ่งที่เสนอราคา[ปริมาณ]","v":0},{"$f":"_xlfn.RANK.EQ(สิ่งที่เสนอราคา[[#This Row],[ผลรวม]],สิ่งที่เสนอราคา[ผลรวม])","v":8}]
[{"$nulls":4},{"$f":"สิ่งที่เสนอราคา[ราคา]*สิ่งที่เสนอราคา[ปริมาณ]","v":0},{"$f":"_xlfn.RANK.EQ(สิ่งที่เสนอราคา[[#This Row],[ผลรวม]],สิ่งที่เสนอราคา[ผลรวม])","v":8}]
[{"$nulls":4},{"$f":"สิ่งที่เสนอราคา[ราคา]*สิ่งที่เสนอราคา[ปริมาณ]","v":0},{"$f":"_xlfn.RANK.EQ(สิ่งที่เสนอราคา[[#This Row],[ผลรวม]],สิ่งที่เสนอราคา[ผลรวม])","v":8}]
[{"$nulls":4},{"$f":"สิ่งที่เสนอราคา[ราคา]*สิ่งที่เสนอราคา[ปริมาณ]","v":0},{"$f":"_xlfn.RANK.EQ(สิ่งที่เสนอราคา[[#This Row],[ผลรวม]],สิ่งที่เสนอราคา[ผลรวม])","v":8}]
[{"$nulls":4},{"$f":"สิ่งที่เสนอราคา[ราคา]*สิ่งที่เสนอราคา[ปริมาณ]","v":0},{"$f":"_xlfn.RANK.EQ(สิ่งที่เสนอราคา[[#This Row],[ผลรวม]],สิ่งที่เสนอราคา[ผลรวม])","v":8}]
[{"$nulls":4},{"$f":"สิ่งที่เสนอราคา[ราคา]*สิ่งที่เสนอราคา[ปริมาณ]","v":0},{"$f":"_xlfn.RANK.EQ(สิ่งที่เสนอราคา[[#This Row],[ผลรวม]],สิ่งที่เสนอราคา[ผลรวม])","v":8}]
[{"$nulls":4},{"$f":"สิ่งที่เสนอราคา[ราคา]*สิ่งที่เสนอราคา[ปริมาณ]","v":0},{"$f":"_xlfn.RANK.EQ(สิ่งที่เสนอราคา[[#This Row],[ผลรวม]],สิ่งที่เสนอราคา[ผลรวม])","v":8}]
[{"$nulls":4},{"$f":"สิ่งที่เสนอราคา[ราคา]*สิ่งที่เสนอราคา[ปริมาณ]","v":0},{"$f":"_xlfn.RANK.EQ(สิ่งที่เสนอราคา[[#This Row],[ผลรวม]],สิ่งที่เสนอราคา[ผลรวม])","v":8}]
[{"$nulls":4},{"$f":"สิ่งที่เสนอราคา[ราคา]*สิ่งที่เสนอราคา[ปริมาณ]","v":0},{"$f":"_xlfn.RANK.EQ(สิ่งที่เสนอราคา[[#This Row],[ผลรวม]],สิ่งที่เสนอราคา[ผลรวม])","v":8}]
[1,{"$nulls":3},{"$f":"สิ่งที่เสนอราคา[ราคา]*สิ่งที่เสนอราคา[ปริมาณ]","v":0},{"$f":"_xlfn.RANK.EQ(สิ่งที่เสนอราคา[[#This Row],[ผลรวม]],สิ่งที่เสนอราคา[ผลรวม])","v":8}]
[2,null,null,"ผลรวมย่อย",{"$f":"SUBTOTAL(109,สิ่งที่เสนอราคา[ผลรวม])","v":{"v":443.18999999999994,"d":"฿443.19"}}]
[3,null,null,"อัตราภาษี",{"v":0.075,"d":"7.50%"}]
[4,null,null,"ภาษี",{"$f":"TaxRate*สิ่งที่เสนอราคา[[#Totals],[ผลรวม]]","v":{"v":33.23924999999999,"d":"฿33.24"}}]
[5,null,null,"ผลรวมทั้งหมด",{"$f":"Tax+สิ่งที่เสนอราคา[[#Totals],[ผลรวม]]","v":{"v":476.4292499999999,"d":"฿476.43"}}]
[]
[]
[]
[null,"รายละเอียดของวัสดุและราคา"]
[]
[]
[null,null,"TOTAL","หมายเหตุ"]
[null,{"$f":"INDEX(สิ่งที่เสนอราคา[],MATCH(A31,สิ่งที่เสนอราคา[[ ]],0),2)","v":"ค่าแรง"},{"$f":"INDEX(สิ่งที่เสนอราคา[],MATCH(A31,สิ่งที่เสนอราคา[[ ]],0),4)","v":{"v":200,"d":"$200.00"}}]
[null,{"$f":"INDEX(สิ่งที่เสนอราคา[],MATCH(A32,สิ่งที่เสนอราคา[[ ]],0),2)","v":"ไม้ขนาด 2x4x10"},{"$f":"INDEX(สิ่งที่เสนอราคา[],MATCH(A32,สิ่งที่เสนอราคา[[ ]],0),4)","v":{"v":99.39999999999999,"d":"$99.40"}}]
[null,{"$f":"INDEX(สิ่งที่เสนอราคา[],MATCH(A33,สิ่งที่เสนอราคา[[ ]],0),2)","v":"ฉากยึด"},{"$f":"INDEX(สิ่งที่เสนอราคา[],MATCH(A33,สิ่งที่เสนอราคา[[ ]],0),4)","v":{"v":74.7,"d":"$74.70"}}]
[null,{"$f":"INDEX(สิ่งที่เสนอราคา[],MATCH(A34,สิ่งที่เสนอราคา[[ ]],0),2)","v":"ไม้ขนาด 2x8x10"},{"$f":"INDEX(สิ่งที่เสนอราคา[],MATCH(A34,สิ่งที่เสนอราคา[[ ]],0),4)","v":{"v":33.75,"d":"$33.75"}}]
[null,{"$f":"INDEX(สิ่งที่เสนอราคา[],MATCH(A35,สิ่งที่เสนอราคา[[ ]],0),2)","v":"ถุงมือหนัง (คู่)"},{"$f":"INDEX(สิ่งที่เสนอราคา[],MATCH(A35,สิ่งที่เสนอราคา[[ ]],0),4)","v":{"v":15.5,"d":"$15.50"}}]